[Event "Titled Tuesday Blitz January 18 2022"]
[White "Kosteniuk, Alexandra"]
[Black "Iljin, Timofey"]
[WhiteFideId "4128125"]
[BlackFideId "14110180"]
[WhiteElo "2469"]
[BlackElo "2396"]
[Result "1-0"]
[Round "05"]
[TimeControl "180+1"]
[Date "2022.01.18"]
[WhiteClock "0:00:06"]
[BlackClock "0:00:02"]

1. e4 {[%clk 0:03:00]}  e5 {[%clk 0:02:54]} 2. f4 {[%clk 0:02:57]}  exf4 {[%clk 0:02:54]} 3. Nf3 {[%clk 0:02:56]}  g5 {[%clk 0:02:53]} 4. d4 {[%clk 0:02:49]}  Bg7 {[%clk 0:02:53]} 5. h4 {[%clk 0:02:43]}  h6 {[%clk 0:02:43]} 6. Bc4 {[%clk 0:02:38]}  d6 {[%clk 0:02:36]} 7. Nc3 {[%clk 0:02:32]}  Bg4 {[%clk 0:02:29]} 8. O-O {[%clk 0:02:28]}  Nc6 {[%clk 0:02:16]} 9. Ne2 {[%clk 0:02:27]}  Qe7 {[%clk 0:01:48]} 10. c3 {[%clk 0:02:10]}  O-O-O {[%clk 0:01:46]} 11. d5 {[%clk 0:01:40]}  Ne5 {[%clk 0:01:41]} 12. Bb5 {[%clk 0:01:36]}  Nf6 {[%clk 0:01:04]} 13. Qa4 {[%clk 0:01:35]}  Kb8 {[%clk 0:01:03]} 14. Bd2 {[%clk 0:01:15]}  Nxf3+ {[%clk 0:00:40]} 15. gxf3 {[%clk 0:01:14]}  Bh3 {[%clk 0:00:40]} 16. Be1 {[%clk 0:01:08]}  Bxf1 {[%clk 0:00:18]} 17. Bf2 {[%clk 0:01:08]}  a6 {[%clk 0:00:13]} 18. Bxa6 {[%clk 0:00:52]}  bxa6 {[%clk 0:00:14]} 19. Qxa6 {[%clk 0:00:41]}  Bxe2 {[%clk 0:00:12]} 20. Qxe2 {[%clk 0:00:16]}  Nxd5 {[%clk 0:00:11]} 21. Qb5+ {[%clk 0:00:15]}  Nb6 {[%clk 0:00:11]} 22. a4 {[%clk 0:00:15]}  Qd7 {[%clk 0:00:10]} 23. Qb3 {[%clk 0:00:13]}  Qe6 {[%clk 0:00:05]} 24. Qb5 {[%clk 0:00:10]}  Qc4 {[%clk 0:00:04]} 25. Qf5 {[%clk 0:00:08]}  d5 {[%clk 0:00:02]} 26. a5 {[%clk 0:00:09]}  Nc8 {[%clk 0:00:02]} 27. a6 {[%clk 0:00:09]}  Na7 {[%clk 0:00:02]} 28. Qxf7 {[%clk 0:00:08]}  Bxc3 {[%clk 0:00:02]} 29. bxc3 {[%clk 0:00:07]}  Qxc3 {[%clk 0:00:02]} 30. Rb1+ {[%clk 0:00:08]}  Ka8 {[%clk 0:00:02]} 31. Rb7 {[%clk 0:00:07]}  Qc1+ {[%clk 0:00:01]} 32. Kg2 {[%clk 0:00:07]}  Nc6 {[%clk 0:00:02]} 33. Qxc7 {[%clk 0:00:06]}  Rc8 {[%clk 0:00:02]} 34. Ra7+ {[%clk 0:00:06]}  Nxa7 {[%clk 0:00:02]} 35. Qb7# {[%clk 0:00:06]} 1-0


[Site "https://www.chess.com"]

[Event "Titled Tuesday Blitz January 18 2022"]
[White "Kovalev, Vladislav"]
[Black "Oparin, Grigoriy"]
[WhiteFideId "13504398"]
[BlackFideId "24125890"]
[WhiteElo "2530"]
[BlackElo "2685"]
[Result "0-1"]
[Round "05"]
[TimeControl "180+1"]
[Date "2022.01.18"]
[WhiteClock "0:00:03"]
[BlackClock "0:00:10"]

1. e4 {[%clk 0:02:56]}  c6 {[%clk 0:03:00]} 2. Nf3 {[%clk 0:02:56]}  d5 {[%clk 0:03:00]} 3. d3 {[%clk 0:02:57]}  g6 {[%clk 0:02:58]} 4. Qe2 {[%clk 0:02:56]}  Bg7 {[%clk 0:02:58]} 5. g3 {[%clk 0:02:56]}  Bg4 {[%clk 0:02:55]} 6. Bg2 {[%clk 0:02:57]}  Nd7 {[%clk 0:02:55]} 7. Nbd2 {[%clk 0:02:57]}  e6 {[%clk 0:02:54]} 8. h3 {[%clk 0:02:58]}  Bxf3 {[%clk 0:02:54]} 9. Nxf3 {[%clk 0:02:58]}  Ne7 {[%clk 0:02:55]} 10. O-O {[%clk 0:02:59]}  O-O {[%clk 0:02:55]} 11. c3 {[%clk 0:02:43]}  a5 {[%clk 0:02:52]} 12. d4 {[%clk 0:02:38]}  dxe4 {[%clk 0:02:52]} 13. Qxe4 {[%clk 0:02:39]}  a4 {[%clk 0:02:52]} 14. h4 {[%clk 0:02:34]}  h6 {[%clk 0:02:51]} 15. Bf4 {[%clk 0:02:29]}  Nd5 {[%clk 0:02:50]} 16. Qe2 {[%clk 0:02:29]}  Nxf4 {[%clk 0:02:48]} 17. gxf4 {[%clk 0:02:30]}  Qf6 {[%clk 0:02:45]} 18. Qe4 {[%clk 0:02:26]}  Ra5 {[%clk 0:02:41]} 19. Ne5 {[%clk 0:02:24]}  Rd8 {[%clk 0:02:40]} 20. h5 {[%clk 0:02:24]}  g5 {[%clk 0:02:34]} 21. fxg5 {[%clk 0:02:17]}  Qxg5 {[%clk 0:02:33]} 22. f4 {[%clk 0:02:17]}  Qxh5 {[%clk 0:02:33]} 23. Rf3 {[%clk 0:02:03]}  f5 {[%clk 0:02:29]} 24. Qe2 {[%clk 0:01:58]}  Nf6 {[%clk 0:02:16]} 25. Nc4 {[%clk 0:01:50]}  Raa8 {[%clk 0:01:49]} 26. Qxe6+ {[%clk 0:01:50]}  Kh7 {[%clk 0:01:48]} 27. Rh3 {[%clk 0:01:48]}  Qe8 {[%clk 0:01:21]} 28. Qxf5+ {[%clk 0:01:46]}  Kg8 {[%clk 0:01:20]} 29. Ne5 {[%clk 0:01:44]}  Nd5 {[%clk 0:01:17]} 30. Bxd5+ {[%clk 0:01:41]}  Rxd5 {[%clk 0:01:16]} 31. Kh2 {[%clk 0:01:40]}  Qf8 {[%clk 0:01:09]} 32. Qe6+ {[%clk 0:01:40]}  Kh7 {[%clk 0:01:09]} 33. Qg6+ {[%clk 0:01:34]}  Kg8 {[%clk 0:01:09]} 34. Rg1 {[%clk 0:01:02]}  Rd6 {[%clk 0:01:08]} 35. Qe4 {[%clk 0:00:48]}  Re8 {[%clk 0:01:06]} 36. Rhg3 {[%clk 0:00:40]}  Re7 {[%clk 0:01:06]} 37. f5 {[%clk 0:00:36]}  Rf6 {[%clk 0:01:00]} 38. Qg4 {[%clk 0:00:16]}  h5 {[%clk 0:00:23]} 39. Qxh5 {[%clk 0:00:03]}  Rxf5 {[%clk 0:00:23]} 40. Qh4 {[%clk 0:00:02]}  Rf2+ {[%clk 0:00:21]} 41. R1g2 {[%clk 0:00:02]}  Rxg2+ {[%clk 0:00:20]} 42. Kxg2 {[%clk 0:00:03]}  Re6 {[%clk 0:00:19]} 43. Qg4 {[%clk 0:00:03]}  Qe7 {[%clk 0:00:16]} 44. Qe2 {[%clk 0:00:03]}  b5 {[%clk 0:00:12]} 45. Qh5 {[%clk 0:00:04]}  Rf6 {[%clk 0:00:12]} 46. Rh3 {[%clk 0:00:02]}  Qe6 {[%clk 0:00:11]} 47. Rg3 {[%clk 0:00:01]}  Kf8 {[%clk 0:00:10]} 48. Qe2 {[%clk 0:00:01]}  Qd5+ {[%clk 0:00:10]} 49. Kg1 {[%clk 0:00:01]}  Qe6 {[%clk 0:00:09]} 50. Qg2 {[%clk 0:00:02]}  Qxa2 {[%clk 0:00:05]} 51. Rxg7 {[%clk 0:00:02]}  Qb1+ {[%clk 0:00:05]} 52. Kh2 {[%clk 0:00:02]}  Rh6+ {[%clk 0:00:06]} 53. Kg3 {[%clk 0:00:02]}  Kxg7 {[%clk 0:00:07]} 54. Kf4+ {[%clk 0:00:02]}  Kf8 {[%clk 0:00:07]} 55. Qg5 {[%clk 0:00:02]}  Qc1+ {[%clk 0:00:08]} 56. Kf5 {[%clk 0:00:02]}  Qxg5+ {[%clk 0:00:08]} 57. Kxg5 {[%clk 0:00:03]}  Rh2 {[%clk 0:00:09]} 58. Nxc6 {[%clk 0:00:02]}  Rxb2 {[%clk 0:00:10]} 59. d5 {[%clk 0:00:02]}  a3 {[%clk 0:00:10]} 60. d6 {[%clk 0:00:03]}  Rd2 {[%clk 0:00:10]} 0-1


[Site "https://www.chess.com"]

[Event "Titled Tuesday Blitz January 18 2022"]
[White "Kravtsiv, Martyn"]
[Black "Csonka, Balazs"]
[WhiteFideId "14113147"]
[BlackFideId "742910"]
[WhiteElo "2694"]
[BlackElo "2404"]
[Result "0-1"]
[Round "05"]
[TimeControl "180+1"]
[Date "2022.01.18"]
[WhiteClock "0:00:02"]
[BlackClock "0:00:02"]

1. e4 {[%clk 0:03:00]}  e5 {[%clk 0:02:57]} 2. Nf3 {[%clk 0:03:00]}  Nc6 {[%clk 0:02:53]} 3. Nc3 {[%clk 0:03:00]}  Nf6 {[%clk 0:02:52]} 4. a4 {[%clk 0:03:00]}  d5 {[%clk 0:02:38]} 5. exd5 {[%clk 0:02:59]}  Nxd5 {[%clk 0:02:39]} 6. Bb5 {[%clk 0:02:58]}  Nxc3 {[%clk 0:02:38]} 7. bxc3 {[%clk 0:02:58]}  Bd6 {[%clk 0:02:38]} 8. O-O {[%clk 0:02:57]}  O-O {[%clk 0:02:38]} 9. d4 {[%clk 0:02:57]}  exd4 {[%clk 0:02:38]} 10. cxd4 {[%clk 0:02:58]}  Bg4 {[%clk 0:02:28]} 11. c3 {[%clk 0:02:57]}  Qf6 {[%clk 0:02:28]} 12. h3 {[%clk 0:02:52]}  Bxf3 {[%clk 0:02:27]} 13. Qxf3 {[%clk 0:02:52]}  Qxf3 {[%clk 0:02:27]} 14. gxf3 {[%clk 0:02:53]}  a5 {[%clk 0:02:13]} 15. Bd3 {[%clk 0:02:47]}  Nd8 {[%clk 0:02:02]} 16. Rb1 {[%clk 0:02:16]}  b6 {[%clk 0:02:00]} 17. Re1 {[%clk 0:02:09]}  Ne6 {[%clk 0:01:53]} 18. Re4 {[%clk 0:02:08]}  g6 {[%clk 0:01:38]} 19. Bh6 {[%clk 0:01:45]}  Rfd8 {[%clk 0:01:30]} 20. Rbe1 {[%clk 0:01:41]}  Bf8 {[%clk 0:01:22]} 21. Bxf8 {[%clk 0:01:27]}  Kxf8 {[%clk 0:01:23]} 22. Bc4 {[%clk 0:01:27]}  Ng5 {[%clk 0:01:12]} 23. R4e3 {[%clk 0:01:22]}  Re8 {[%clk 0:01:05]} 24. Kg2 {[%clk 0:01:21]}  h6 {[%clk 0:00:44]} 25. h4 {[%clk 0:01:06]}  Nh7 {[%clk 0:00:43]} 26. Bb5 {[%clk 0:01:05]}  Rxe3 {[%clk 0:00:41]} 27. fxe3 {[%clk 0:01:06]}  Nf6 {[%clk 0:00:40]} 28. e4 {[%clk 0:01:06]}  Ke7 {[%clk 0:00:40]} 29. f4 {[%clk 0:01:04]}  Rg8 {[%clk 0:00:36]} 30. Kf2 {[%clk 0:00:54]}  g5 {[%clk 0:00:32]} 31. hxg5 {[%clk 0:00:54]}  hxg5 {[%clk 0:00:33]} 32. f5 {[%clk 0:00:54]}  Rh8 {[%clk 0:00:32]} 33. e5 {[%clk 0:00:48]}  Nd5 {[%clk 0:00:29]} 34. f6+ {[%clk 0:00:45]}  Kf8 {[%clk 0:00:27]} 35. c4 {[%clk 0:00:35]}  Nb4 {[%clk 0:00:21]} 36. Kg3 {[%clk 0:00:33]}  c6 {[%clk 0:00:20]} 37. c5 {[%clk 0:00:21]}  cxb5 {[%clk 0:00:19]} 38. cxb6 {[%clk 0:00:18]}  Ke8 {[%clk 0:00:19]} 39. Rc1 {[%clk 0:00:14]}  Kd7 {[%clk 0:00:17]} 40. Rc7+ {[%clk 0:00:14]}  Ke6 {[%clk 0:00:17]} 41. axb5 {[%clk 0:00:14]}  Nd5 {[%clk 0:00:12]} 42. Rc6+ {[%clk 0:00:13]}  Kf5 {[%clk 0:00:12]} 43. Rd6 {[%clk 0:00:11]}  Ke4 {[%clk 0:00:11]} 44. b7 {[%clk 0:00:11]}  Rb8 {[%clk 0:00:10]} 45. Rd7 {[%clk 0:00:11]}  a4 {[%clk 0:00:09]} 46. Rxf7 {[%clk 0:00:08]}  a3 {[%clk 0:00:09]} 47. Rh7 {[%clk 0:00:08]}  a2 {[%clk 0:00:06]} 48. Rh1 {[%clk 0:00:09]}  Rxb7 {[%clk 0:00:07]} 49. Re1+ {[%clk 0:00:06]}  Kxd4 {[%clk 0:00:06]} 50. Ra1 {[%clk 0:00:06]}  Kxe5 {[%clk 0:00:06]} 51. Rxa2 {[%clk 0:00:06]}  Nxf6 {[%clk 0:00:03]} 52. Rb2 {[%clk 0:00:05]}  Rb6 {[%clk 0:00:03]} 53. Rb1 {[%clk 0:00:05]}  Kf5 {[%clk 0:00:03]} 54. Kf3 {[%clk 0:00:04]}  Nd5 {[%clk 0:00:02]} 55. Rb3 {[%clk 0:00:03]}  Nc7 {[%clk 0:00:02]} 56. Rc3 {[%clk 0:00:03]}  Nxb5 {[%clk 0:00:02]} 57. Rc5+ {[%clk 0:00:03]}  Kf6 {[%clk 0:00:02]} 58. Kg4 {[%clk 0:00:03]}  Nd6 {[%clk 0:00:01]} 59. Rxg5 {[%clk 0:00:02]}  Rb4+ {[%clk 0:00:01]} 60. Kh5 {[%clk 0:00:02]}  Ne4 {[%clk 0:00:02]} 61. Rg6+ {[%clk 0:00:02]}  Kf5 {[%clk 0:00:02]} 62. Kh6 {[%clk 0:00:02]}  Nf6 {[%clk 0:00:02]} 0-1


[Site "https://www.chess.com"]

[Event "Titled Tuesday Blitz January 18 2022"]
[White "Krivonosov, Oleg"]
[Black "Jocev, Milan"]
[WhiteFideId "11600349"]
[BlackFideId "900680"]
[WhiteElo "2455"]
[BlackElo "2322"]
[Result "1-0"]
[Round "05"]
[TimeControl "180+1"]
[Date "2022.01.18"]
[WhiteClock "0:00:51"]
[BlackClock "0:00:02"]

1. Nf3 {[%clk 0:03:00]}  Nf6 {[%clk 0:02:59]} 2. c4 {[%clk 0:02:59]}  g6 {[%clk 0:02:59]} 3. Nc3 {[%clk 0:02:58]}  Bg7 {[%clk 0:02:58]} 4. e4 {[%clk 0:02:58]}  e5 {[%clk 0:02:56]} 5. d4 {[%clk 0:02:58]}  exd4 {[%clk 0:02:55]} 6. Nxd4 {[%clk 0:02:57]}  O-O {[%clk 0:02:54]} 7. Bd3 {[%clk 0:02:57]}  c6 {[%clk 0:02:54]} 8. O-O {[%clk 0:02:56]}  d5 {[%clk 0:02:53]} 9. cxd5 {[%clk 0:02:55]}  cxd5 {[%clk 0:02:54]} 10. exd5 {[%clk 0:02:54]}  Nxd5 {[%clk 0:02:54]} 11. Be4 {[%clk 0:02:54]}  Nxc3 {[%clk 0:02:25]} 12. bxc3 {[%clk 0:02:55]}  Qc7 {[%clk 0:02:25]} 13. Qb3 {[%clk 0:02:41]}  Nc6 {[%clk 0:02:16]} 14. Nxc6 {[%clk 0:02:26]}  bxc6 {[%clk 0:02:17]} 15. Be3 {[%clk 0:02:25]}  Be6 {[%clk 0:02:14]} 16. Qa4 {[%clk 0:02:23]}  Bd5 {[%clk 0:02:05]} 17. Bxd5 {[%clk 0:02:17]}  cxd5 {[%clk 0:02:06]} 18. Bd4 {[%clk 0:02:17]}  Bxd4 {[%clk 0:02:04]} 19. Qxd4 {[%clk 0:02:12]}  Rfd8 {[%clk 0:02:02]} 20. Rab1 {[%clk 0:02:09]}  Rac8 {[%clk 0:02:01]} 21. Rb3 {[%clk 0:02:08]}  Qc5 {[%clk 0:01:58]} 22. Rd1 {[%clk 0:02:03]}  Qxd4 {[%clk 0:01:49]} 23. Rxd4 {[%clk 0:02:04]}  Rc4 {[%clk 0:01:49]} 24. g3 {[%clk 0:02:01]}  Rxd4 {[%clk 0:01:47]} 25. cxd4 {[%clk 0:02:00]}  Rc8 {[%clk 0:01:47]} 26. Rb5 {[%clk 0:01:56]}  Rc4 {[%clk 0:01:44]} 27. Ra5 {[%clk 0:01:49]}  Rxd4 {[%clk 0:01:44]} 28. Rxa7 {[%clk 0:01:50]}  Rd1+ {[%clk 0:01:30]} 29. Kg2 {[%clk 0:01:49]}  Kg7 {[%clk 0:01:30]} 30. h4 {[%clk 0:01:47]}  h5 {[%clk 0:01:30]} 31. Kf3 {[%clk 0:01:47]}  Kf6 {[%clk 0:01:29]} 32. a4 {[%clk 0:01:43]}  Ra1 {[%clk 0:01:21]} 33. a5 {[%clk 0:01:42]}  Ra3+ {[%clk 0:01:21]} 34. Ke2 {[%clk 0:01:41]}  Ke6 {[%clk 0:01:18]} 35. a6 {[%clk 0:01:40]}  f6 {[%clk 0:01:10]} 36. Ra8 {[%clk 0:01:37]}  Kf5 {[%clk 0:01:09]} 37. f3 {[%clk 0:01:34]}  d4 {[%clk 0:01:07]} 38. a7 {[%clk 0:01:32]}  Re3+ {[%clk 0:00:44]} 39. Kd1 {[%clk 0:01:29]}  Ra3 {[%clk 0:00:43]} 40. Kd2 {[%clk 0:01:29]}  Ra2+ {[%clk 0:00:38]} 41. Kd3 {[%clk 0:01:28]}  Ra4 {[%clk 0:00:39]} 42. Kc2 {[%clk 0:01:27]}  Ra2+ {[%clk 0:00:05]} 43. Kb3 {[%clk 0:01:25]}  Ra1 {[%clk 0:00:05]} 44. Kc4 {[%clk 0:01:24]}  Ra4+ {[%clk 0:00:05]} 45. Kd3 {[%clk 0:01:24]}  Ra3+ {[%clk 0:00:04]} 46. Kxd4 {[%clk 0:01:21]}  Ra4+ {[%clk 0:00:05]} 47. Kc5 {[%clk 0:01:20]}  Ra1 {[%clk 0:00:05]} 48. Kb6 {[%clk 0:01:19]}  Rb1+ {[%clk 0:00:05]} 49. Kc6 {[%clk 0:01:19]}  Rc1+ {[%clk 0:00:05]} 50. Kd6 {[%clk 0:01:20]}  Ra1 {[%clk 0:00:06]} 51. Ke7 {[%clk 0:01:19]}  Re1+ {[%clk 0:00:04]} 52. Kf7 {[%clk 0:01:19]}  Ra1 {[%clk 0:00:05]} 53. Kg7 {[%clk 0:01:19]}  g5 {[%clk 0:00:05]} 54. hxg5 {[%clk 0:01:15]}  Kxg5 {[%clk 0:00:06]} 55. Kh7 {[%clk 0:01:14]}  Kf5 {[%clk 0:00:06]} 56. Kh6 {[%clk 0:01:13]}  Ra2 {[%clk 0:00:06]} 57. g4+ {[%clk 0:00:54]}  hxg4 {[%clk 0:00:05]} 58. fxg4+ {[%clk 0:00:54]}  Kxg4 {[%clk 0:00:02]} 59. Rg8+ {[%clk 0:00:53]}  Kf3 {[%clk 0:00:01]} 60. a8=Q+ {[%clk 0:00:51]}  Rxa8 {[%clk 0:00:02]} 61. Rxa8 {[%clk 0:00:51]} 1-0


[Site "https://www.chess.com"]

[Event "Titled Tuesday Blitz January 18 2022"]
[White "Kucuksari, Kaan"]
[Black "Ekdyshman, Mikhail"]
[WhiteFideId "6380166"]
[BlackFideId "4149416"]
[WhiteElo "2305"]
[BlackElo "2156"]
[Result "1-0"]
[Round "05"]
[TimeControl "180+1"]
[Date "2022.01.18"]
[WhiteClock "0:00:28"]
[BlackClock "0:00:02"]

1. d4 {[%clk 0:02:59]}  Nf6 {[%clk 0:02:58]} 2. c4 {[%clk 0:02:59]}  e6 {[%clk 0:02:57]} 3. g3 {[%clk 0:02:59]}  d5 {[%clk 0:02:55]} 4. Nf3 {[%clk 0:02:59]}  b6 {[%clk 0:02:50]} 5. Bg2 {[%clk 0:02:59]}  Bb7 {[%clk 0:02:50]} 6. O-O {[%clk 0:02:58]}  Nbd7 {[%clk 0:02:39]} 7. Ne5 {[%clk 0:02:56]}  c6 {[%clk 0:02:35]} 8. Nc3 {[%clk 0:02:55]}  Bd6 {[%clk 0:02:27]} 9. Bf4 {[%clk 0:02:48]}  Bxe5 {[%clk 0:02:07]} 10. dxe5 {[%clk 0:02:49]}  Nh5 {[%clk 0:02:07]} 11. Be3 {[%clk 0:02:27]}  Nxe5 {[%clk 0:02:00]} 12. cxd5 {[%clk 0:02:27]}  cxd5 {[%clk 0:01:46]} 13. Bd4 {[%clk 0:02:26]}  Nd7 {[%clk 0:01:38]} 14. e4 {[%clk 0:02:25]}  Nhf6 {[%clk 0:01:35]} 15. exd5 {[%clk 0:02:25]}  O-O {[%clk 0:01:22]} 16. dxe6 {[%clk 0:02:25]}  Bxg2 {[%clk 0:01:21]} 17. exf7+ {[%clk 0:02:25]}  Rxf7 {[%clk 0:01:20]} 18. Kxg2 {[%clk 0:02:26]}  Qc7 {[%clk 0:01:13]} 19. f4 {[%clk 0:02:14]}  Rd8 {[%clk 0:01:09]} 20. Qf3 {[%clk 0:02:14]}  Nf8 {[%clk 0:00:57]} 21. Rad1 {[%clk 0:02:11]}  h6 {[%clk 0:00:52]} 22. Be5 {[%clk 0:02:09]}  Qc8 {[%clk 0:00:49]} 23. Rxd8 {[%clk 0:02:05]}  Qxd8 {[%clk 0:00:49]} 24. Rd1 {[%clk 0:02:06]}  Rd7 {[%clk 0:00:44]} 25. Bxf6 {[%clk 0:01:56]}  Qxf6 {[%clk 0:00:43]} 26. Rxd7 {[%clk 0:01:56]}  Nxd7 {[%clk 0:00:43]} 27. Qd5+ {[%clk 0:01:57]}  Qf7 {[%clk 0:00:43]} 28. Qxf7+ {[%clk 0:01:57]}  Kxf7 {[%clk 0:00:42]} 29. Kf3 {[%clk 0:01:58]}  Ke6 {[%clk 0:00:42]} 30. g4 {[%clk 0:01:52]}  Kd6 {[%clk 0:00:35]} 31. h4 {[%clk 0:01:50]}  Kc5 {[%clk 0:00:34]} 32. Ke4 {[%clk 0:01:49]}  b5 {[%clk 0:00:33]} 33. Kf5 {[%clk 0:01:48]}  Nf8 {[%clk 0:00:32]} 34. Ke5 {[%clk 0:01:39]}  Ng6+ {[%clk 0:00:26]} 35. Ke4 {[%clk 0:01:38]}  Nxh4 {[%clk 0:00:26]} 36. f5 {[%clk 0:01:38]}  b4 {[%clk 0:00:18]} 37. Nd1 {[%clk 0:01:28]}  a5 {[%clk 0:00:16]} 38. Ne3 {[%clk 0:01:23]}  a4 {[%clk 0:00:15]} 39. b3 {[%clk 0:01:21]}  a3 {[%clk 0:00:14]} 40. Nc2 {[%clk 0:01:04]}  Ng2 {[%clk 0:00:13]} 41. Kf3 {[%clk 0:01:04]}  Nh4+ {[%clk 0:00:08]} 42. Kg3 {[%clk 0:01:05]}  g5 {[%clk 0:00:09]} 43. Ne1 {[%clk 0:00:33]}  Kd4 {[%clk 0:00:06]} 44. Nf3+ {[%clk 0:00:33]}  Kc3 {[%clk 0:00:03]} 45. Nxh4 {[%clk 0:00:33]}  gxh4+ {[%clk 0:00:04]} 46. Kxh4 {[%clk 0:00:33]}  Kb2 {[%clk 0:00:05]} 47. f6 {[%clk 0:00:34]}  Kxa2 {[%clk 0:00:05]} 48. f7 {[%clk 0:00:35]}  Kxb3 {[%clk 0:00:06]} 49. f8=Q {[%clk 0:00:36]}  a2 {[%clk 0:00:06]} 50. Qf6 {[%clk 0:00:36]}  Kc2 {[%clk 0:00:06]} 51. Qf2+ {[%clk 0:00:31]}  Kb1 {[%clk 0:00:06]} 52. Qe1+ {[%clk 0:00:32]}  Kc2 {[%clk 0:00:06]} 53. Qe2+ {[%clk 0:00:31]}  Kb1 {[%clk 0:00:05]} 54. Qd1+ {[%clk 0:00:30]}  Kb2 {[%clk 0:00:05]} 55. Qd2+ {[%clk 0:00:31]}  Ka3 {[%clk 0:00:03]} 56. Qc1+ {[%clk 0:00:29]}  Ka4 {[%clk 0:00:02]} 57. Qb2 {[%clk 0:00:29]}  b3 {[%clk 0:00:02]} 58. Kh5 {[%clk 0:00:28]} 1-0


[Site "https://www.chess.com"]

[Event "Titled Tuesday Blitz January 18 2022"]
[White "Martinez Ramirez, Lennis"]
[Black "Demin, Vladimir"]
[WhiteFideId "3509079"]
[BlackFideId "4167457"]
[WhiteElo "2374"]
[BlackElo "2472"]
[Result "0-1"]
[Round "05"]
[TimeControl "180+1"]
[Date "2022.01.18"]
[WhiteClock "0:00:27"]
[BlackClock "0:00:17"]

1. d4 {[%clk 0:03:00]}  Nf6 {[%clk 0:02:56]} 2. Bf4 {[%clk 0:03:00]}  d5 {[%clk 0:02:56]} 3. e3 {[%clk 0:03:00]}  c5 {[%clk 0:02:55]} 4. Nf3 {[%clk 0:03:00]}  Nc6 {[%clk 0:02:56]} 5. Nbd2 {[%clk 0:03:00]}  e6 {[%clk 0:02:55]} 6. c3 {[%clk 0:02:59]}  Bd6 {[%clk 0:02:55]} 7. Bxd6 {[%clk 0:02:51]}  Qxd6 {[%clk 0:02:56]} 8. Bb5 {[%clk 0:02:50]}  a6 {[%clk 0:02:52]} 9. Qa4 {[%clk 0:02:47]}  Bd7 {[%clk 0:02:44]} 10. Qa3 {[%clk 0:02:46]}  b6 {[%clk 0:02:09]} 11. Nb3 {[%clk 0:02:41]}  Ne4 {[%clk 0:02:08]} 12. Bd3 {[%clk 0:02:41]}  c4 {[%clk 0:02:02]} 13. Bxe4 {[%clk 0:02:38]}  Qxa3 {[%clk 0:02:01]} 14. bxa3 {[%clk 0:02:38]}  dxe4 {[%clk 0:02:00]} 15. Nfd2 {[%clk 0:02:36]}  cxb3 {[%clk 0:02:00]} 16. axb3 {[%clk 0:02:36]}  f5 {[%clk 0:01:57]} 17. a4 {[%clk 0:02:32]}  Ke7 {[%clk 0:01:56]} 18. Ke2 {[%clk 0:02:29]}  Rhc8 {[%clk 0:01:51]} 19. f3 {[%clk 0:02:27]}  exf3+ {[%clk 0:01:49]} 20. gxf3 {[%clk 0:02:28]}  Na5 {[%clk 0:01:38]} 21. Kd3 {[%clk 0:02:26]}  e5 {[%clk 0:01:32]} 22. dxe5 {[%clk 0:02:15]}  Bc6 {[%clk 0:01:32]} 23. Kc2 {[%clk 0:02:05]}  Bd5 {[%clk 0:01:27]} 24. Rhg1 {[%clk 0:02:02]}  g6 {[%clk 0:01:27]} 25. h4 {[%clk 0:01:58]}  Rc7 {[%clk 0:01:19]} 26. h5 {[%clk 0:01:55]}  Kf7 {[%clk 0:01:15]} 27. hxg6+ {[%clk 0:01:55]}  hxg6 {[%clk 0:01:16]} 28. Rg5 {[%clk 0:01:54]}  Rac8 {[%clk 0:01:14]} 29. c4 {[%clk 0:01:55]}  Ba8 {[%clk 0:01:09]} 30. Rh1 {[%clk 0:01:50]}  Rg8 {[%clk 0:00:48]} 31. Kc3 {[%clk 0:01:40]}  Nc6 {[%clk 0:00:48]} 32. Rh7+ {[%clk 0:01:39]}  Rg7 {[%clk 0:00:47]} 33. Rh8 {[%clk 0:01:36]}  Bb7 {[%clk 0:00:44]} 34. f4 {[%clk 0:01:35]}  b5 {[%clk 0:00:39]} 35. e4 {[%clk 0:01:33]}  bxa4 {[%clk 0:00:37]} 36. exf5 {[%clk 0:01:30]}  a3 {[%clk 0:00:34]} 37. f6 {[%clk 0:01:29]}  Nb4 {[%clk 0:00:18]} 38. fxg7 {[%clk 0:01:23]}  Kxg7 {[%clk 0:00:19]} 39. Rh1 {[%clk 0:01:17]}  Bxh1 {[%clk 0:00:18]} 40. Kxb4 {[%clk 0:01:14]}  a2 {[%clk 0:00:17]} 41. Rg1 {[%clk 0:01:14]}  Bc6 {[%clk 0:00:16]} 42. Ka3 {[%clk 0:01:10]}  Rd7 {[%clk 0:00:16]} 43. Kxa2 {[%clk 0:00:47]}  Rxd2+ {[%clk 0:00:16]} 44. Ka3 {[%clk 0:00:48]}  Rf2 {[%clk 0:00:16]} 45. Rg4 {[%clk 0:00:43]}  Bd7 {[%clk 0:00:15]} 46. Rh4 {[%clk 0:00:43]}  a5 {[%clk 0:00:12]} 47. c5 {[%clk 0:00:37]}  Rf3 {[%clk 0:00:12]} 48. Kb2 {[%clk 0:00:36]}  Be6 {[%clk 0:00:12]} 49. c6 {[%clk 0:00:31]}  Rxb3+ {[%clk 0:00:13]} 50. Kc2 {[%clk 0:00:32]}  Rb6 {[%clk 0:00:13]} 51. c7 {[%clk 0:00:31]}  Rc6+ {[%clk 0:00:14]} 52. Kd3 {[%clk 0:00:31]}  Rxc7 {[%clk 0:00:15]} 53. Rh2 {[%clk 0:00:32]}  Rc4 {[%clk 0:00:14]} 54. Rb2 {[%clk 0:00:29]}  Rxf4 {[%clk 0:00:13]} 55. Rb7+ {[%clk 0:00:27]}  Kh6 {[%clk 0:00:13]} 56. Re7 {[%clk 0:00:27]}  Bf5+ {[%clk 0:00:13]} 57. Ke3 {[%clk 0:00:27]}  Rb4 {[%clk 0:00:14]} 58. Kf3 {[%clk 0:00:25]}  a4 {[%clk 0:00:13]} 59. Ra7 {[%clk 0:00:25]}  Kg5 {[%clk 0:00:13]} 60. Ra5 {[%clk 0:00:23]}  Rb3+ {[%clk 0:00:13]} 61. Ke2 {[%clk 0:00:23]}  a3 {[%clk 0:00:13]} 62. Kd2 {[%clk 0:00:23]}  Rb2+ {[%clk 0:00:12]} 63. Kc3 {[%clk 0:00:21]}  Rh2 {[%clk 0:00:09]} 64. Rxa3 {[%clk 0:00:21]}  Rh3+ {[%clk 0:00:10]} 65. Kb4 {[%clk 0:00:21]}  Rxa3 {[%clk 0:00:10]} 66. Kxa3 {[%clk 0:00:20]}  Kf4 {[%clk 0:00:11]} 67. Kb4 {[%clk 0:00:21]}  Kxe5 {[%clk 0:00:11]} 68. Kc3 {[%clk 0:00:22]}  Kf4 {[%clk 0:00:12]} 69. Kd2 {[%clk 0:00:23]}  Kf3 {[%clk 0:00:13]} 70. Ke1 {[%clk 0:00:23]}  Bd3 {[%clk 0:00:13]} 71. Kd2 {[%clk 0:00:23]}  Be2 {[%clk 0:00:14]} 72. Kc3 {[%clk 0:00:24]}  g5 {[%clk 0:00:14]} 73. Kd4 {[%clk 0:00:25]}  g4 {[%clk 0:00:15]} 74. Ke5 {[%clk 0:00:26]}  g3 {[%clk 0:00:16]} 75. Kf6 {[%clk 0:00:27]}  g2 {[%clk 0:00:17]} 0-1


[Site "https://www.chess.com"]